bitfinex/quotes_ETHUSD_20240828
["timestamp","ask_amount","ask_price","bid_price","bid_amount"]
[1724884229996,3.38360748,2526.2,2525.7,2.3037]
[1724884230156,7.34220748,2526.2,2525.7,2.3037]
[1724884230356,7.34219748,2526.2,2525.7,2.53407]
[1724884231205,3.38360748,2525.9,2524.7,2.3867]
[1724884231363,7.34259748,2525.9,2524.7,2.3867]
[1724884231563,7.34315748,2525.6,2524.9,2.3899]
[1724884231908,3.38360748,2525.3,2524.9,2.3899]
[1724884232203,7.34352748,2525.3,2524.9,2.3899]
[1724884232913,3.96008,2525.2,2524.6,2.4401]
[1724884233106,3.96008,2525.2,2525.0,0.05303765]
[1724884233848,3.96008,2525.2,2524.7,0.24401]
[1724884234010,3.38360748,2525.3,2524.7,0.24401]
[1724884234405,7.34362748,2525.3,2524.7,0.24401]
[1724884235014,3.9601,2525.2,2524.7,0.24401]
[1724884235214,7.34413748,2525.0,2524.6,2.4401]
[1724884235898,3.38360748,2525.0,2524.6,2.4401]
[1724884237103,7.34459748,2524.7,2523.7,2.4606]
[1724884237304,3.38360748,2524.4,2523.8,0.396241]
[1724884238641,7.34495748,2524.4,2523.8,0.396241]
[1724884239198,3.38360748,2524.4,2523.8,0.396241]
[1724884239829,11.30637748,2524.4,2523.8,0.396241]
[1724884240042,3.96157,2524.3,2523.7,2.4606]
[1724884240345,3.96246,2523.7,2522.7,2.47]
[1724884240640,3.38360748,2523.3,2522.8,0.06555203]
[1724884240941,3.38360748,2523.5,2522.8,0.31910723]
[1724884241267,3.38360748,2523.3,2522.8,0.31910723]
[1724884241419,7.34666748,2523.3,2522.8,0.06555203]
[1724884241617,3.38360748,2523.3,2522.7,2.47]
[1724884241855,3.38360748,2523.5,2522.8,0.05899682]
[1724884242131,4.52824644,2523.7,2522.8,0.05899682]
[1724884242342,3.96277,2523.5,2522.8,0.3118965]
[1724884242728,3.96294,2523.4,2522.8,0.25289968]
[1724884243849,3.0,2523.6,2522.9,0.07926353]
[1724884244035,4.52824644,2524.0,2523.0,2.344]
[1724884244232,8.48973644,2524.3,2523.1,0.30073636]
[1724884244543,8.48973644,2524.3,2523.3,2.4832]
[1724884244746,8.48973644,2524.3,2523.4,0.6292365]
[1724884244914,8.48983644,2524.3,2523.4,0.68705984]
[1724884245116,8.48983644,2524.3,2523.5,0.31702598]
[1724884245359,4.52824644,2524.3,2523.6,0.0792365]
[1724884245727,4.52824644,2524.3,2523.7,0.05723682]
[1724884246251,3.0,2524.2,2523.7,0.05723682]
[1724884246755,3.0,2524.2,2523.6,0.0792365]
[1724884247260,3.0,2524.2,2523.7,0.05723682]
[1724884248433,6.96141,2524.4,2523.8,2.4639]
[1724884248641,3.96154,2524.3,2523.8,2.4639]
[1724884248849,3.96154,2524.3,2523.8,2.71821365]
[1724884249248,3.0,2524.4,2523.8,2.71821365]
[1724884249571,3.96122,2524.5,2523.8,2.71821365]
[1724884249779,3.0,2524.4,2523.8,2.71821365]
[1724884249931,3.0,2524.6,2523.9,0.27182136]
[1724884249932,3.96118,2524.5,2523.9,0.27182136]
[1724884250131,3.0,2524.4,2523.9,0.27182136]
[1724884250370,3.96151,2524.3,2523.9,0.27182136]
[1724884250575,3.96151,2524.3,2523.8,2.4639]
[1724884250742,3.0,2524.4,2523.9,0.07922957]
[1724884250942,3.96135,2524.4,2523.8,2.4639]
[1724884251171,6.9613,2524.5,2524.0,0.05665042]
[1724884251536,6.9613,2524.5,2523.8,2.71029]
[1724884252076,6.9613,2524.5,2523.9,0.05684587]
[1724884252635,3.0,2524.5,2523.9,0.05684587]
[1724884252834,3.96118,2524.5,2523.9,0.33355946]
[1724884253068,3.96118,2524.5,2523.8,2.4639]
[1724884253280,3.96143,2524.4,2523.8,2.4639]
[1724884253570,3.96118,2524.5,2523.8,2.4639]
[1724884253954,3.96118,2524.5,2523.9,0.05684587]
[1724884257390,3.96003,2525.3,2524.5,2.55568528]
[1724884257571,3.96026,2525.1,2524.5,2.55568528]
[1724884258005,3.96102,2524.6,2524.5,0.06190924]
[1724884258554,3.96102,2524.6,2524.2,2.3159]
[1724884259658,9.84654644,2524.9,2524.2,2.3159]
[1724884259858,9.84654644,2524.9,2523.0,7.52824644]
[1724884259859,3.96144,2524.4,2523.9,2.4118]
[1724884260082,7.92289,2524.4,2523.9,2.4118]
[1724884260283,3.96149,2524.3,2523.9,2.4118]
[1724884260707,3.96144,2524.4,2523.9,2.4118]
[1724884261002,3.96142,2524.4,2523.9,2.4118]
[1724884261215,3.96192,2524.1,2523.2,2.287]
[1724884261493,4.52824644,2524.3,2523.4,2.4513]
[1724884261494,3.96167,2524.2,2523.4,2.4513]
[1724884261696,3.96167,2524.2,2523.5,0.25158153]
[1724884262007,3.96123,2524.5,2523.7,2.4513]
[1724884262304,3.96134,2524.4,2523.8,0.06342915]
[1724884262461,5.80641164,2524.4,2523.8,0.06342915]
[1724884262660,9.76783164,2524.4,2523.7,2.4513]
[1724884262960,3.96134,2524.4,2523.8,0.06342915]
[1724884263157,7.9228,2524.4,2523.8,0.06342915]
[1724884263395,3.96189,2524.1,2523.7,2.4513]
[1724884263604,3.96156,2524.3,2523.7,2.4513]
[1724884263777,3.96134,2524.4,2523.7,2.4513]
[1724884264107,7.52824644,2524.6,2523.9,2.4513]
[1724884264108,3.0,2524.6,2523.9,2.4513]
[1724884264257,3.0,2524.5,2524.0,0.55]
[1724884264464,3.0,2524.5,2524.1,0.35834525]
[1724884264660,3.96071,2524.8,2524.2,0.07922181]
[1724884264876,3.96071,2524.8,2524.3,2.3005]
[1724884265162,3.96071,2524.8,2524.3,2.35832443]
[1724884265476,3.96086,2524.7,2524.3,2.3005]
[1724884265899,3.96145,2524.4,2524.0,2.2894]
[1724884266198,4.3931454,2524.6,2523.0,4.52824644]
[1724884266199,3.96174,2524.2,2523.2,2.2894]
[1724884266406,3.96174,2524.2,2523.4,2.2894]
[1724884266575,3.96182,2524.1,2523.4,2.2894]
[1724884266775,3.96198,2524.0,2523.4,2.2894]
[1724884267662,3.96225,2523.9,2523.4,2.2894]
[1724884267968,4.52824644,2524.3,2523.4,2.2894]
[1724884267969,3.96238,2523.8,2523.4,2.2894]
[1724884268174,8.48976644,2524.3,2523.4,2.2894]
[1724884268175,7.92418,2524.0,2523.4,2.2894]
[1724884268510,3.96207,2524.0,2523.4,2.2894]
[1724884268796,3.96207,2524.0,2522.9,2.4554]
[1724884268797,7.92508,2523.7,2522.9,2.4554]
[1724884268963,6.96221,2523.9,2522.9,2.4554]
[1724884269301,10.92442,2523.9,2522.9,2.4554]
[1724884269473,6.96221,2523.9,2523.1,2.2927]
[1724884269797,3.0,2523.9,2523.1,2.2927]
[1724884270008,3.0,2524.0,2523.2,0.55]
[1724884270190,3.0,2524.0,2523.3,2.37194113]
[1724884270499,6.96174,2524.2,2523.5,2.4643]
[1724884270699,3.96122,2524.5,2523.6,0.07923836]
[1724884270908,3.96122,2524.5,2523.7,3.0143]
[1724884271109,3.96122,2524.5,2523.8,0.38858369]
[1724884271401,8.48885644,2524.9,2523.9,2.2585]
[1724884271609,4.52824644,2524.9,2524.1,2.2585]
[1724884271791,4.52824644,2525.2,2524.3,2.2585]
[1724884272014,8.48840644,2525.2,2524.4,0.62920855]
[1724884272308,4.52824644,2525.2,2524.3,2.2585]
[1724884272604,3.9608,2524.8,2524.3,2.2585]
[1724884273164,6.96034,2525.1,2524.3,2.2585]
[1724884273408,3.96034,2525.1,2524.4,0.77585]
[1724884273565,3.0,2525.0,2524.4,0.83383833]
[1724884273905,3.96034,2525.1,2524.4,0.83383833]
[1724884274106,3.96034,2525.1,2524.5,0.30923383]
[1724884274559,3.96034,2525.1,2524.6,0.05759761]
[1724884274762,3.96033,2525.1,2524.6,0.05759761]
[1724884275370,4.52824644,2525.2,2524.6,2.3996]
[1724884275589,3.95998,2525.3,2524.7,0.05700944]
[1724884275772,3.95998,2525.3,2524.7,0.33359377]
[1724884275773,3.9601,2525.2,2524.7,0.33359377]
[1724884275963,3.95998,2525.3,2524.7,0.05700944]
[1724884276184,3.0,2525.5,2524.8,2.3996]
[1724884276363,3.9593,2525.7,2524.9,0.07919361]
[1724884276561,4.80805464,2525.7,2524.9,0.32485455]
[1724884276814,7.91873,2525.7,2525.0,0.05633376]
[1724884276998,3.95932,2525.7,2525.0,0.05633376]
[1724884277311,4.52824644,2525.8,2525.0,0.05633376]
[1724884277522,3.95875,2526.1,2525.1,3.0037]
[1724884277705,11.40842,2526.3,2525.2,2.4537]
[1724884277706,12.19662154,2526.3,2525.2,2.4537]
[1724884277880,3.95842,2526.3,2525.4,2.4537]
[1724884278217,3.95813,2526.5,2525.6,2.4537]
[1724884278367,3.95813,2526.5,2525.7,0.88245197]
[1724884278574,3.95813,2526.5,2525.8,0.07916505]
[1724884278884,3.95782,2526.7,2525.9,2.50799639]
[1724884279087,3.95805,2526.5,2525.9,2.84704128]
[1724884279812,8.48606644,2526.7,2526.0,0.07916077]
[1724884280018,4.52824644,2526.7,2526.1,0.55]
[1724884280172,4.52824644,2526.7,2526.1,0.61701126]
[1724884280673,3.95751,2526.9,2526.1,0.61701126]
[1724884281015,3.95768,2526.8,2526.1,0.40798687]
[1724884281212,4.52824644,2526.7,2526.1,0.06701126]
[1724884281401,3.95814,2526.5,2525.9,2.4537]
[1724884281570,3.95814,2526.5,2526.0,0.24537]
[1724884281775,3.95814,2526.5,2526.0,0.31262516]
[1724884282947,4.52824644,2526.4,2526.0,0.06725516]
[1724884283243,4.52824644,2526.4,2525.6,2.4018]
[1724884283244,3.95838,2526.3,2525.6,2.4018]
[1724884283441,3.95851,2526.2,2525.7,0.06798699]
[1724884283650,3.95851,2526.2,2525.7,0.31496569]
[1724884284148,3.95851,2526.2,2525.7,0.2469787]
[1724884284756,3.95851,2526.2,2525.8,0.06607434]
[1724884285055,3.95851,2526.2,2525.7,0.2469787]
[1724884285349,3.95851,2526.2,2525.8,0.06607434]
[1724884285839,3.95851,2526.2,2525.7,0.2469787]
[1724884286016,3.95851,2526.2,2525.8,0.06607434]
[1724884286362,3.95898,2525.9,2525.6,2.4018]
[1724884286840,3.95877,2526.1,2525.6,2.4018]
[1724884286841,3.95884,2526.0,2525.6,2.4018]
[1724884287038,3.95899,2525.9,2525.6,2.4018]
[1724884287254,3.95922,2525.8,2525.6,2.4018]
[1724884287552,3.95899,2525.9,2525.6,2.4018]
[1724884287751,3.95845,2526.3,2525.6,2.4018]
[1724884288159,3.95845,2526.3,2525.7,0.0589496]
[1724884288327,3.95791,2526.6,2525.6,2.4018]
[1724884288328,3.95876,2526.1,2525.6,2.4018]
[1724884288655,3.95876,2526.1,2525.7,0.24018]
[1724884289213,4.52824644,2526.4,2525.6,2.4018]
[1724884289214,3.95907,2525.9,2525.6,2.4018]
[1724884290791,7.91815,2525.9,2525.6,2.4018]
[1724884291498,3.95907,2525.9,2525.6,2.4018]
[1724884292202,3.95864,2526.2,2525.6,2.4018]
[1724884292382,3.95816,2526.5,2525.7,0.86934944]
[1724884292554,3.0,2526.7,2525.8,2.57656018]
[1724884292555,3.95783,2526.7,2525.8,2.57656018]
[1724884292755,3.95782,2526.7,2526.0,2.4974]
[1724884292954,3.95759,2526.8,2526.1,0.93389507]
[1724884293158,3.95759,2526.8,2526.2,2.4974]
[1724884293398,3.95774,2526.7,2526.3,0.07915302]
[1724884293596,3.95806,2526.5,2526.2,2.4974]
[1724884293757,3.95806,2526.5,2526.2,2.832614]
[1724884294520,3.9582,2526.4,2526.2,2.832614]
[1724884294717,7.34584374,2526.5,2526.2,2.832614]
[1724884295009,3.95806,2526.5,2526.2,2.832614]
[1724884295890,3.95806,2526.5,2526.3,0.3382614]
[1724884296097,3.95783,2526.7,2526.3,0.3382614]
[1724884297123,3.95781,2526.7,2526.3,0.3382614]
[1724884297326,3.38778374,2526.8,2526.3,0.3382614]
[1724884297472,3.95689,2527.3,2526.5,2.435]
[1724884297674,7.9138,2527.3,2526.6,0.07913734]
[1724884298007,3.95712,2527.1,2526.7,0.55]
[1724884298208,3.95742,2526.9,2526.6,0.55]
[1724884298408,7.34497374,2527.1,2526.6,0.55]
[1724884298815,3.95742,2526.9,2526.5,2.435]
[1724884298979,3.95765,2526.8,2526.5,2.435]
[1724884299821,3.95781,2526.7,2525.8,2.3215]
[1724884300016,3.95781,2526.7,2525.9,0.78215]
[1724884300219,7.91565,2526.7,2526.0,2.3215]
[1724884300372,7.91565,2526.7,2526.1,0.55]
[1724884300373,3.95796,2526.6,2526.1,0.55]
[1724884300574,3.95796,2526.6,2526.1,0.62468523]
[1724884300800,3.95796,2526.6,2526.2,0.29461852]
[1724884300997,3.95796,2526.6,2526.3,0.55]
[1724884301197,3.95793,2526.6,2526.3,0.6241278]
[1724884301423,3.95781,2526.7,2526.2,0.29461852]
[1724884302009,3.95814,2526.5,2526.2,0.29461852]
[1724884302332,7.91627,2526.5,2526.2,0.29461852]
[1724884302498,3.95823,2526.4,2526.2,0.29461852]
[1724884302821,3.9579,2526.6,2526.2,0.29461852]
[1724884303124,3.9579,2526.6,2526.0,2.3215]
[1724884303323,3.9579,2526.6,2526.1,0.55]
[1724884303527,3.9579,2526.6,2526.1,0.62468523]
[1724884303909,3.95805,2526.5,2526.1,0.62468523]
[1724884304120,3.95805,2526.5,2526.2,0.29461852]
[1724884304288,3.95788,2526.7,2526.2,0.29461852]
[1724884304491,3.95788,2526.7,2526.3,0.0741278]
[1724884304691,3.95788,2526.7,2526.2,0.29461852]
[1724884304921,3.95788,2526.7,2526.3,0.0741278]
[1724884305438,3.95788,2526.7,2526.4,2.453]
[1724884305787,7.91575,2526.7,2526.4,2.453]
[1724884306017,3.95789,2526.6,2526.4,2.453]
[1724884307000,3.95787,2526.7,2526.4,2.453]
[1724884307333,6.95712,2527.1,2526.4,2.453]
[1724884307334,3.9572,2527.1,2526.4,2.453]
[1724884307537,3.9572,2527.1,2526.5,0.7953]
[1724884307691,3.95765,2526.8,2526.5,0.7953]
[1724884307897,3.95765,2526.8,2526.4,2.453]
[1724884308195,3.95765,2526.8,2525.1,3.96017]
[1724884308196,3.95836,2526.3,2525.4,2.3933]
[1724884308394,3.9583,2526.4,2525.4,2.3933]
[1724884308691,3.0,2526.3,2525.6,2.3933]
[1724884308892,3.0,2526.3,2525.7,0.07541613]
[1724884309230,6.95846,2526.3,2525.7,0.07541613]
[1724884309604,3.95863,2526.2,2525.7,0.07541613]
[1724884309918,3.9587,2526.1,2525.7,0.34622074]
[1724884310093,10.91695,2526.3,2525.7,0.34622074]
[1724884310293,10.91693,2526.3,2525.7,0.34622074]
[1724884310816,6.95846,2526.3,2525.7,0.34622074]
[1724884311009,6.95845,2526.3,2525.7,0.34622074]
[1724884311650,3.95867,2526.1,2525.7,0.34622074]
[1724884312739,3.95884,2526.0,2525.7,0.27080461]
[1724884317578,7.91779,2526.0,2525.7,0.27080461]
[1724884317789,3.95952,2525.6,2525.3,2.3252]
[1724884318070,3.95954,2525.6,2525.3,2.3252]
[1724884318368,3.95962,2525.5,2525.3,2.3252]
[1724884318723,3.95964,2525.5,2524.3,8.47804956]
[1724884318949,3.95994,2525.3,2524.6,2.3252]
[1724884319164,3.95978,2525.4,2524.6,2.3252]
[1724884319351,3.95978,2525.4,2524.7,0.33175876]
[1724884319532,3.95978,2525.4,2524.7,0.39249803]
[1724884319928,3.95964,2525.5,2524.7,0.39249803]
[1724884319929,3.95994,2525.3,2524.7,0.39249803]
[1724884320175,3.9607,2524.8,2524.7,0.06073927]
[1724884320382,3.96049,2525.0,2524.7,0.06073927]
[1724884320585,3.96049,2525.0,2524.7,0.2993332]
[1724884320744,3.96049,2525.0,2524.7,0.23859393]
[1724884321146,3.96086,2524.7,2524.6,2.3252]
[1724884321442,3.96086,2524.7,2523.9,0.99265952]
[1724884321443,3.96151,2524.3,2523.9,0.99265952]
[1724884321657,3.96151,2524.3,2523.9,3.47065952]
[1724884322540,7.92254,2524.5,2523.9,3.47065952]
[1724884322744,3.96136,2524.4,2524.0,0.05640857]
[1724884322980,3.96124,2524.5,2524.0,0.40911538]
[1724884323185,6.96094,2524.7,2524.1,0.07922645]
[1724884323349,6.96094,2524.7,2524.0,0.40911538]
[1724884323350,3.96122,2524.5,2524.2,2.4372]
[1724884323673,5.353436,2524.5,2524.2,0.06224191]
[1724884323842,3.96149,2524.3,2523.9,2.4372]
[1724884324286,3.96122,2524.5,2523.9,2.4372]
[1724884324580,7.92252,2524.5,2523.9,2.4372]
[1724884324742,3.96122,2524.5,2523.9,2.68092]
[1724884324939,3.96159,2524.3,2523.9,2.68092]
[1724884325255,7.92258,2524.5,2523.9,2.68092]
[1724884325782,7.92258,2524.5,2524.0,0.06267619]
[1724884326387,3.96137,2524.4,2524.0,0.06267619]
[1724884326596,3.96137,2524.4,2524.0,0.33703581]
[1724884326886,3.9615,2524.3,2524.0,0.33703581]
[1724884327081,7.92256,2524.5,2523.9,2.4372]
[1724884327493,6.96095,2524.7,2524.0,0.55]
[1724884327698,3.96042,2525.0,2524.2,2.393]
[1724884327943,3.96058,2524.9,2524.3,0.6120248]
[1724884328246,3.96133,2524.5,2524.3,0.0620248]
[1724884328394,3.96133,2524.5,2523.9,2.3042]
[1724884328596,3.96166,2524.2,2523.9,2.3042]
[1724884328831,3.96166,2524.2,2523.1,3.96335]
[1724884328832,3.96166,2524.2,2523.2,2.3042]
[1724884328994,3.96166,2524.2,2523.3,0.626755]
[1724884329931,3.96185,2524.1,2523.3,0.626755]
[1724884330095,3.96185,2524.1,2523.4,0.55]
[1724884330297,2.4355,2524.7,2523.4,0.55]
[1724884330298,2.3304,2525.0,2523.5,2.3073]
[1724884330498,2.3304,2525.0,2523.7,2.3073]
[1724884330499,3.96096,2524.7,2523.7,2.3073]
[1724884330734,3.96103,2524.6,2523.8,0.55]
[1724884330903,3.96103,2524.6,2523.9,0.36495176]
[1724884331112,3.96103,2524.6,2524.0,0.55]
[1724884331296,3.96103,2524.6,2524.1,0.07922178]
[1724884331506,3.9608,2524.8,2524.1,0.07922178]
[1724884331507,3.96088,2524.7,2524.1,0.07922178]
[1724884331707,3.96088,2524.7,2524.2,2.3333]
[1724884331918,3.96088,2524.7,2524.3,0.0792196]
[1724884332110,7.92222,2524.6,2524.2,2.62955218]
[1724884332311,7.92222,2524.6,2523.8,2.335]
[1724884332312,2.4328,2524.5,2523.8,2.335]
[1724884332535,3.96191,2524.1,2523.1,2.335]
[1724884332722,3.96212,2523.9,2523.2,0.2335]
[1724884333417,7.92434,2523.9,2523.2,0.2335]
[1724884333759,3.96212,2523.9,2523.2,0.2335]
[1724884333960,3.9619,2524.1,2523.3,2.4938]
[1724884334127,3.96189,2524.1,2523.4,0.27273]
[1724884334328,3.96159,2524.3,2523.5,0.0792389]
[1724884334527,3.9615,2524.3,2523.6,2.4938]
[1724884334747,3.96098,2524.7,2523.8,2.3479]
[1724884334930,6.96098,2524.7,2523.9,0.87193731]
[1724884335353,6.96095,2524.7,2523.9,0.87193731]
[1724884335518,10.92193,2524.7,2524.0,0.06375385]
[1724884335714,3.96065,2524.9,2524.1,2.469]
[1724884336023,3.96071,2524.8,2524.2,0.55]
[1724884336226,3.96065,2524.9,2524.3,0.3019]
[1724884336553,3.96065,2524.9,2524.4,0.06288537]
[1724884336554,7.92128,2524.9,2524.4,0.06288537]
[1724884336756,3.96063,2524.9,2524.4,0.06288537]
[1724884337064,3.96081,2524.8,2524.4,0.06288537]
[1724884337710,3.96055,2524.9,2524.4,0.06288537]
[1724884338623,3.96016,2525.2,2524.5,2.2749]
[1724884338814,7.92036,2525.2,2524.6,0.7916998]
[1724884339052,7.92036,2525.2,2524.6,0.85415103]
[1724884339259,3.96016,2525.2,2524.6,0.85415103]
[1724884339430,3.96,2525.3,2524.7,0.0792045]
[1724884339629,3.96,2525.3,2524.7,0.3921096]
[1724884339828,3.95988,2525.4,2524.8,0.1412217]
[1724884340043,11.40955,2525.6,2524.9,2.9823]
[1724884340258,3.95955,2525.6,2525.0,0.31235217]
[1724884340446,3.95955,2525.6,2525.0,0.36777701]
[1724884340659,3.95986,2525.4,2525.0,0.31235217]
[1724884341313,3.95955,2525.6,2525.1,0.07919424]
[1724884342019,3.95955,2525.6,2525.2,0.0550343]
[1724884342358,3.95955,2525.6,2525.1,0.07919424]
[1724884342795,3.95955,2525.6,2525.2,0.0550343]
[1724884342924,3.95955,2525.6,2525.1,0.07919424]
[1724884343123,7.91854,2525.8,2525.2,0.0550343]
[1724884343343,3.0,2525.9,2525.2,0.0550343]
[1724884343344,3.95887,2526.0,2525.3,2.37778838]
[1724884343629,3.95899,2525.9,2525.4,0.24328227]
[1724884343947,3.95887,2526.0,2525.5,0.13873881]
[1724884344151,7.91779,2526.0,2525.5,0.13873881]
[1724884344456,7.91779,2526.0,2525.5,0.0595577]
[1724884344457,3.95945,2525.7,2525.5,0.0595577]
[1724884344665,3.95945,2525.6,2525.5,0.0595577]
[1724884346257,3.95945,2525.6,2525.0,2.2733]
[1724884346686,3.95962,2525.5,2525.0,2.2733]
[1724884346983,7.91888,2525.7,2525.0,2.55563]
[1724884347184,3.95945,2525.6,2525.0,2.55563]
[1724884347369,3.95962,2525.5,2525.0,2.2733]
[1724884347688,3.95987,2525.4,2525.0,2.2733]
[1724884347841,3.95978,2525.4,2525.0,2.2733]
[1724884349548,3.95962,2525.5,2525.1,0.06052508]
[1724884349747,3.95936,2525.7,2525.1,0.06052508]
[1724884350163,3.95953,2525.6,2525.1,0.06052508]
[1724884350580,3.95936,2525.7,2525.1,0.06052508]
[1724884350801,3.95877,2526.1,2525.3,2.438]
[1724884350949,3.95877,2526.1,2525.4,0.62917613]
[1724884351290,3.95822,2526.4,2525.5,2.2696]
[1724884351472,3.95822,2526.4,2525.7,2.2696]
[1724884351679,3.95822,2526.4,2525.8,0.55]
[1724884353590,7.91657,2526.4,2525.7,2.8196]
[1724884353747,3.95828,2526.4,2526.3,0.05792894]
[1724884353946,3.95828,2526.4,2525.8,0.28196]
[1724884354145,3.95805,2526.5,2525.8,0.28196]
[1724884354146,3.95837,2526.3,2525.8,0.28196]
[1724884354387,7.91682,2526.3,2525.8,0.28196]
[1724884354585,3.9588,2526.1,2525.7,2.8196]
[1724884354960,3.95882,2526.0,2525.7,2.2696]
[1724884355287,7.91806,2525.9,2525.2,2.2553]
[1724884355484,3.95899,2525.9,2525.3,0.25719155]
[1724884356362,3.95914,2525.8,2525.3,0.25719155]
[1724884356691,3.9594,2525.7,2525.2,2.2553]
[1724884357484,3.95897,2526.0,2525.2,2.2553]
[1724884357781,3.0,2525.9,2525.2,2.2553]
[1724884357986,3.0,2525.9,2525.3,0.77553]
[1724884359594,3.0,2525.9,2525.4,2.4975]
[1724884359794,3.0,2525.9,2525.5,0.55]
[1724884359986,6.95898,2525.9,2525.5,0.55]
[1724884360996,3.0,2525.9,2525.6,2.4476]
[1724884361209,3.959,2525.9,2525.6,2.4476]
[1724884362467,7.9181,2525.9,2525.6,2.4476]
[1724884362702,3.95938,2525.7,2525.3,2.2627]
[1724884363336,3.95909,2525.9,2525.3,2.2627]
[1724884363468,3.95875,2526.1,2525.4,0.55]
[1724884363799,3.0,2526.0,2525.4,0.83127]
[1724884364303,3.959,2525.9,2525.4,0.83127]
[1724884364507,3.0,2526.0,2525.4,0.83127]
[1724884364803,6.95896,2526.0,2525.5,2.37275146]
[1724884364976,3.959,2525.9,2525.5,2.37275146]
[1724884365577,7.34741688,2526.3,2525.5,2.37275146]
[1724884365578,3.95945,2525.6,2525.5,0.05955146]
[1724884365920,3.9593,2525.7,2525.2,2.4634]
[1724884366199,3.9593,2525.7,2525.5,0.05343377]
[1724884366200,3.95945,2525.6,2525.5,0.05343377]
[1724884366405,3.95945,2525.6,2525.2,2.4634]
[1724884366703,3.9593,2525.7,2525.5,0.05343377]
[1724884366910,3.9593,2525.7,2525.2,2.70974]
[1724884367107,3.9593,2525.7,2525.6,0.0532778]
[1724884367311,3.95955,2525.6,2525.2,2.70974]
[1724884367467,3.95961,2525.5,2525.3,0.55]
[1724884367675,7.91873,2525.7,2525.3,0.60386905]
[1724884367976,3.95973,2525.5,2525.4,0.05367382]
[1724884368190,3.95973,2525.5,2525.2,2.4634]
[1724884368407,3.95941,2525.7,2525.4,0.05367382]
[1724884368698,3.95961,2525.5,2525.3,0.55]
[1724884368900,3.95961,2525.5,2525.2,2.4634]
[1724884369107,3.95961,2525.5,2525.2,2.70974]
[1724884369307,3.95961,2525.5,2525.3,0.05386905]
[1724884369662,3.95945,2525.6,2525.2,2.70974]
[1724884369866,3.95951,2525.6,2525.4,0.05367382]
[1724884370101,3.95951,2525.6,2525.3,0.05386905]
[1724884370287,3.95951,2525.6,2525.2,2.4634]
[1724884370494,3.95951,2525.6,2525.4,0.05367382]
[1724884370690,3.95951,2525.6,2525.3,0.05386905]
[1724884370873,3.95951,2525.6,2525.2,2.70974]
[1724884371073,3.95951,2525.6,2525.4,0.05367382]
[1724884371303,3.95951,2525.6,2525.3,0.05985451]
[1724884371495,3.95951,2525.6,2525.2,2.70974]
[1724884371703,3.0,2526.1,2525.4,0.05963758]
[1724884372014,6.95876,2526.1,2525.6,2.369]
[1724884372171,11.40843,2526.3,2525.7,0.55]
[1724884372375,11.40843,2526.3,2525.8,0.37107027]
[1724884372578,3.95862,2526.2,2525.8,0.35067006]
[1724884373109,11.40843,2526.3,2525.8,0.42984046]
[1724884373110,15.36691,2526.3,2525.8,0.42984046]
[1724884373485,3.95854,2526.2,2525.8,0.42984046]
[1724884373885,3.95854,2526.2,2525.8,0.3710704]
[1724884374414,6.95812,2526.5,2525.9,2.369]
[1724884374583,3.95812,2526.5,2526.0,0.26609]
[1724884374916,3.95812,2526.5,2526.0,0.32443886]
[1724884375078,3.95812,2526.5,2526.1,0.55]
[1724884375407,7.91566,2526.7,2526.2,0.14431492]
[1724884375615,3.95782,2526.7,2526.2,0.14431492]
[1724884375782,3.95782,2526.7,2526.2,0.07916025]
[1724884375980,7.9157,2526.7,2526.2,0.07916025]
[1724884376995,3.95782,2526.7,2526.3,2.2714]
[1724884377308,7.34651688,2526.9,2526.3,2.2714]
[1724884377309,3.9576,2526.8,2526.4,0.07915482]
[1724884379316,3.9576,2526.8,2526.3,2.59939041]
[1724884379608,3.95773,2526.7,2526.3,2.59939041]
[1724884380185,3.95789,2526.6,2526.3,2.59939041]
[1724884380382,3.95828,2526.4,2526.1,0.55]
[1724884380588,3.95828,2526.4,2526.0,2.4362]
[1724884380778,3.95828,2526.4,2526.1,0.07424492]
[1724884381084,3.95837,2526.3,2525.9,2.3803]
[1724884381314,3.95837,2526.3,2526.1,0.074135]
[1724884381519,3.95837,2526.3,2526.0,0.07441375]
[1724884381821,3.95837,2526.3,2526.1,0.074135]
[1724884382115,3.95837,2526.3,2525.9,2.3803]
[1724884382319,3.95837,2526.3,2526.1,0.074135]
[1724884382506,3.95837,2526.3,2526.0,0.07441375]
[1724884382675,3.95837,2526.3,2526.1,0.074135]
[1724884382883,3.95837,2526.3,2525.9,2.3803]
[1724884383089,3.95837,2526.3,2526.1,0.074135]
[1724884383576,0.791665,2526.3,2526.1,0.074135]
[1724884383776,0.791665,2526.3,2524.8,3.96059]
[1724884383777,7.91702,2526.2,2524.8,3.96059]
[1724884384010,3.95936,2525.7,2524.9,2.42949625]
[1724884384227,7.91933,2525.5,2525.0,0.24294963]
[1724884384430,7.91933,2525.5,2525.0,0.30285901]
[1724884384431,3.95978,2525.4,2525.0,0.30285901]
[1724884384626,3.95962,2525.5,2525.0,0.30285901]
[1724884385406,3.95946,2525.6,2525.0,0.30285901]
[1724884385839,3.95963,2525.5,2525.0,0.30285901]
[1724884386342,3.95963,2525.5,2525.1,0.55]
[1724884386500,3.95963,2525.5,2525.1,0.8714559]
[1724884386701,3.95908,2525.9,2525.3,2.4662]
[1724884386943,3.95906,2525.9,2525.4,0.55]
[1724884387237,3.95906,2525.9,2525.4,0.61665988]
[1724884387448,10.91758,2526.1,2525.4,0.92494587]
[1724884387602,3.95884,2526.0,2525.4,0.92494587]
[1724884387802,3.95878,2526.1,2525.5,2.42867597]
[1724884388013,3.95866,2526.2,2525.7,2.3495]
[1724884388249,3.95899,2525.9,2525.8,0.55]
[1724884388549,3.95899,2525.9,2525.4,2.65778599]
[1724884388550,3.95929,2525.8,2525.4,2.3495]